[Event "Early-Titled-Tuesday-Blitz-January-16-2024"]
[Site "Chess.com"]
[Date "2024.01.16"]
[Round "4"]
[White "hmatyi07"]
[Black "Kotofeyca"]
[Result "1/2-1/2"]
[WhiteElo "2187"]
[BlackElo "2429"]
[TimeControl "180+1"]
[EndTime "8:42:24 PST"]
[Termination "Game drawn - insufficient material"]

1. e4 {[%clk 0:03:00.9]} 1... c5 {[%clk 0:02:59.5]} 2. Nf3 {[%clk 0:03:01.1]}
2... d6 {[%clk 0:02:59.9]} 3. d4 {[%clk 0:03:01.2]} 3... cxd4 {[%clk 0:03:00.8]}
4. Nxd4 {[%clk 0:03:02.1]} 4... Nf6 {[%clk 0:03:01.3]} 5. Nc3 {[%clk 0:03:02.7]}
5... a6 {[%clk 0:03:01.9]} 6. Rg1 {[%clk 0:03:03]} 6... b5 {[%clk 0:02:59.8]} 7.
g4 {[%clk 0:03:02]} 7... Bb7 {[%clk 0:03:00]} 8. a4 {[%clk 0:02:38.8]} 8... bxa4
{[%clk 0:02:36.6]} 9. Rxa4 {[%clk 0:02:32.8]} 9... Nxe4 {[%clk 0:02:23.4]} 10.
Nxe4 {[%clk 0:02:06.8]} 10... Bxe4 {[%clk 0:02:24.3]} 11. Ne6 {[%clk 0:02:05.2]}
11... fxe6 {[%clk 0:00:59.8]} 12. Rxe4 {[%clk 0:02:03.2]} 12... Qd7 {[%clk
0:00:50.7]} 13. g5 {[%clk 0:01:59.5]} 13... e5 {[%clk 0:00:43.5]} 14. Qd5 {[%clk
0:01:33.1]} 14... Nc6 {[%clk 0:00:38.3]} 15. Bh3 {[%clk 0:01:11.4]} 15... Qb7
{[%clk 0:00:24.8]} 16. Rc4 {[%clk 0:00:57.3]} 16... Nd8 {[%clk 0:00:22.8]} 17.
Qxb7 {[%clk 0:00:50]} 17... Nxb7 {[%clk 0:00:23.7]} 18. Bg2 {[%clk 0:00:50]}
18... Ra7 {[%clk 0:00:20.1]} 19. Rc7 {[%clk 0:00:47.4]} 19... e6 {[%clk
0:00:15.9]} 20. Rxb7 {[%clk 0:00:44.2]} 20... Rxb7 {[%clk 0:00:15.6]} 21. Bxb7
{[%clk 0:00:45.1]} 21... a5 {[%clk 0:00:15.9]} 22. Bc6+ {[%clk 0:00:44.4]} 22...
Kf7 {[%clk 0:00:15.3]} 23. Bd2 {[%clk 0:00:44]} 23... d5 {[%clk 0:00:14.9]} 24.
Bxa5 {[%clk 0:00:42.3]} 24... Bd6 {[%clk 0:00:15.4]} 25. Ba4 {[%clk 0:00:28.2]}
25... Ra8 {[%clk 0:00:14.7]} 26. b4 {[%clk 0:00:28.7]} 26... Bxb4+ {[%clk
0:00:14.1]} 27. Bxb4 {[%clk 0:00:25.5]} 27... Rxa4 {[%clk 0:00:15]} 28. Rg4
{[%clk 0:00:19.1]} 28... d4 {[%clk 0:00:14.2]} 29. Bd2 {[%clk 0:00:18.1]} 29...
Ra2 {[%clk 0:00:13.3]} 30. Re4 {[%clk 0:00:17.6]} 30... Rxc2 {[%clk 0:00:11.4]}
31. Rxe5 {[%clk 0:00:18]} 31... d3 {[%clk 0:00:09.3]} 32. Re3 {[%clk 0:00:15.8]}
32... Rc4 {[%clk 0:00:08.3]} 33. Rxd3 {[%clk 0:00:15.5]} 33... Rh4 {[%clk
0:00:09.2]} 34. h3 {[%clk 0:00:15.1]} 34... Kg6 {[%clk 0:00:09.5]} 35. Rg3
{[%clk 0:00:14.8]} 35... Kf5 {[%clk 0:00:08.9]} 36. Re3 {[%clk 0:00:15.2]} 36...
e5 {[%clk 0:00:08.6]} 37. Ke2 {[%clk 0:00:15.5]} 37... e4 {[%clk 0:00:06.9]} 38.
Ra3 {[%clk 0:00:14.3]} 38... Kg6 {[%clk 0:00:05.7]} 39. Be3 {[%clk 0:00:14]}
39... Rxh3 {[%clk 0:00:05]} 40. Ra5 {[%clk 0:00:12.9]} 40... Kh5 {[%clk
0:00:04.5]} 41. Ra4 {[%clk 0:00:11.2]} 41... Rh4 {[%clk 0:00:04.1]} 42. Kd2
{[%clk 0:00:11.5]} 42... Kg6 {[%clk 0:00:03.2]} 43. Kc3 {[%clk 0:00:11.4]} 43...
h6 {[%clk 0:00:03.5]} 44. gxh6 {[%clk 0:00:11.3]} 44... gxh6 {[%clk 0:00:04.3]}
45. Kd4 {[%clk 0:00:11.7]} 45... Kf5 {[%clk 0:00:04.4]} 46. Ra5+ {[%clk
0:00:12]} 46... Kg4 {[%clk 0:00:05.1]} 47. Re5 {[%clk 0:00:12.3]} 47... Kf3
{[%clk 0:00:04.9]} 48. Rf5+ {[%clk 0:00:12.5]} 48... Kg2 {[%clk 0:00:05]} 49.
Re5 {[%clk 0:00:11.5]} 49... Kf3 {[%clk 0:00:04.6]} 50. Re6 {[%clk 0:00:12.2]}
50... h5 {[%clk 0:00:04.6]} 51. Rf6+ {[%clk 0:00:11.7]} 51... Kg2 {[%clk
0:00:04.8]} 52. Ke5 {[%clk 0:00:11.4]} 52... Rg4 {[%clk 0:00:04.4]} 53. Rh6
{[%clk 0:00:11.2]} 53... h4 {[%clk 0:00:04.5]} 54. Kf5 {[%clk 0:00:10.8]} 54...
Kh3 {[%clk 0:00:03.3]} 55. Rg6 {[%clk 0:00:07.6]} 55... Rxg6 {[%clk 0:00:02.6]}
56. Kxg6 {[%clk 0:00:08.5]} 56... Kg2 {[%clk 0:00:02.6]} 57. Kf5 {[%clk
0:00:07.6]} 57... h3 {[%clk 0:00:03.2]} 58. Bf4 {[%clk 0:00:07.7]} 58... Kxf2
{[%clk 0:00:03.4]} 59. Kxe4 {[%clk 0:00:08.2]} 59... Kg2 {[%clk 0:00:04]} 60.
Bd6 {[%clk 0:00:08.3]} 60... h2 {[%clk 0:00:04.9]} 61. Bxh2 {[%clk 0:00:08.6]}
1/2-1/2

[Event "Early-Titled-Tuesday-Blitz-January-16-2024"]
[Site "Chess.com"]
[Date "2024.01.16"]
[Round "4"]
[White "carokannlover213"]
[Black "nindjaxx8"]
[Result "1-0"]
[WhiteElo "2775"]
[BlackElo "2564"]
[TimeControl "180+1"]
[EndTime "8:42:26 PST"]
[Termination "carokannlover213 won by resignation"]

1. c4 {[%clk 0:03:00.9]} 1... e6 {[%clk 0:03:00]} 2. Nf3 {[%clk 0:02:57.6]} 2...
d5 {[%clk 0:03:00.5]} 3. g3 {[%clk 0:02:58.3]} 3... Nf6 {[%clk 0:02:56.9]} 4.
Bg2 {[%clk 0:02:58.6]} 4... Be7 {[%clk 0:02:57]} 5. O-O {[%clk 0:02:59.2]} 5...
O-O {[%clk 0:02:57.2]} 6. d4 {[%clk 0:02:58.6]} 6... b6 {[%clk 0:02:57.4]} 7.
Ne5 {[%clk 0:02:57.5]} 7... Bb7 {[%clk 0:02:57.3]} 8. Nc3 {[%clk 0:02:58]} 8...
Nbd7 {[%clk 0:02:57.5]} 9. Qa4 {[%clk 0:02:58.6]} 9... c6 {[%clk 0:02:57.8]} 10.
Nxd7 {[%clk 0:02:35.1]} 10... Nxd7 {[%clk 0:02:45.2]} 11. Rd1 {[%clk 0:02:33.6]}
11... a6 {[%clk 0:02:42.4]} 12. Qb3 {[%clk 0:02:26.6]} 12... b5 {[%clk
0:02:38.5]} 13. c5 {[%clk 0:02:26.1]} 13... a5 {[%clk 0:02:37.9]} 14. a4 {[%clk
0:02:23.9]} 14... b4 {[%clk 0:02:37.7]} 15. Nb1 {[%clk 0:02:23.9]} 15... Ba6
{[%clk 0:02:36.8]} 16. Qc2 {[%clk 0:02:24.3]} 16... Nf6 {[%clk 0:02:34.2]} 17.
Bf4 {[%clk 0:02:20.6]} 17... Re8 {[%clk 0:02:33.9]} 18. Bf3 {[%clk 0:02:18.7]}
18... Nd7 {[%clk 0:02:25.5]} 19. Bg4 {[%clk 0:02:10.6]} 19... Bf6 {[%clk
0:02:25]} 20. e4 {[%clk 0:02:00]} 20... e5 {[%clk 0:01:45.3]} 21. Bxd7 {[%clk
0:01:57.6]} 21... Qxd7 {[%clk 0:01:45.2]} 22. dxe5 {[%clk 0:01:50.8]} 22... Bxe5
{[%clk 0:01:43.9]} 23. Be3 {[%clk 0:01:51]} 23... d4 {[%clk 0:01:30.1]} 24. f4
{[%clk 0:01:43.8]} 24... d3 {[%clk 0:01:24.2]} 25. fxe5 {[%clk 0:00:38.2]} 25...
dxc2 {[%clk 0:01:22.1]} 26. Rxd7 {[%clk 0:00:38.4]} 26... cxb1=B {[%clk
0:01:15.3]} 27. Rxb1 {[%clk 0:00:39.3]} 27... Rxe5 {[%clk 0:01:14.8]} 28. Rd4
{[%clk 0:00:33.7]} 28... Rae8 {[%clk 0:01:07.7]} 29. Rbd1 {[%clk 0:00:33.8]}
29... f6 {[%clk 0:01:00.7]} 30. Rd8 {[%clk 0:00:19.8]} 30... Rxe4 {[%clk
0:00:56.4]} 31. Rxe8+ {[%clk 0:00:20.1]} 31... Rxe8 {[%clk 0:00:56.6]} 32. Kf2
{[%clk 0:00:20.4]} 32... Bc4 {[%clk 0:00:34.8]} 33. Rd7 {[%clk 0:00:17.6]} 33...
Bb3 {[%clk 0:00:26.4]} 34. Ra7 {[%clk 0:00:17.7]} 34... Bxa4 {[%clk 0:00:25.4]}
35. Rxa5 {[%clk 0:00:18.2]} 35... Bb5 {[%clk 0:00:24.8]} 36. Ra7 {[%clk
0:00:18.7]} 36... Re4 {[%clk 0:00:21.2]} 37. Rd7 {[%clk 0:00:14.2]} 37... Rc4
{[%clk 0:00:20.7]} 38. h4 {[%clk 0:00:09.4]} 38... Rc2+ {[%clk 0:00:11.1]} 39.
Rd2 {[%clk 0:00:09.7]} 39... Rc4 {[%clk 0:00:11.1]} 40. Kf3 {[%clk 0:00:09.1]}
40... Kf7 {[%clk 0:00:05.5]} 41. h5 {[%clk 0:00:08.3]} 41... Ke6 {[%clk
0:00:05.5]} 42. Rd6+ {[%clk 0:00:08.1]} 42... Ke5 {[%clk 0:00:05.1]} 43. Bf4+
{[%clk 0:00:06.9]} 43... Rxf4+ {[%clk 0:00:02.2]} 44. gxf4+ {[%clk 0:00:07.8]}
44... Kf5 {[%clk 0:00:02.9]} 45. Rd7 {[%clk 0:00:06.9]} 45... g6 {[%clk
0:00:01.7]} 46. Rxh7 {[%clk 0:00:07]} 46... gxh5 {[%clk 0:00:02.4]} 47. Rxh5+
{[%clk 0:00:07.9]} 47... Ke6 {[%clk 0:00:02.7]} 48. Ke4 {[%clk 0:00:07.4]} 48...
Bc4 {[%clk 0:00:02.8]} 49. f5+ {[%clk 0:00:07.8]} 49... Ke7 {[%clk 0:00:02.7]}
50. Rh7+ {[%clk 0:00:08.5]} 50... Kf8 {[%clk 0:00:02.5]} 51. Rc7 {[%clk
0:00:07.7]} 51... Bd5+ {[%clk 0:00:03]} 52. Kd4 {[%clk 0:00:08.4]} 52... b3
{[%clk 0:00:03.5]} 53. Ke3 {[%clk 0:00:06.5]} 53... Ke8 {[%clk 0:00:03.6]} 54.
Kf4 {[%clk 0:00:07.2]} 54... Kd8 {[%clk 0:00:03]} 55. Rh7 {[%clk 0:00:07.8]}
55... Ke8 {[%clk 0:00:02.8]} 56. Kg4 {[%clk 0:00:08.2]} 56... Kf8 {[%clk
0:00:03]} 57. Kh5 {[%clk 0:00:07.3]} 57... Bf7+ {[%clk 0:00:03.5]} 58. Kh6
{[%clk 0:00:07.6]} 58... Ke7 {[%clk 0:00:03.1]} 59. Kg7 {[%clk 0:00:07.9]} 59...
Ke8 {[%clk 0:00:03.8]} 60. Kxf6 {[%clk 0:00:06.9]} 60... Bc4 {[%clk 0:00:03.7]}
1-0

[Event "Early-Titled-Tuesday-Blitz-January-16-2024"]
[Site "Chess.com"]
[Date "2024.01.16"]
[Round "4"]
[White "Maftuna2303"]
[Black "Giorno"]
[Result "0-1"]
[WhiteElo "2343"]
[BlackElo "2531"]
[TimeControl "180+1"]
[EndTime "8:42:29 PST"]
[Termination "Giorno won on time"]

1. e4 {[%clk 0:03:00.9]} 1... d6 {[%clk 0:02:56.5]} 2. d4 {[%clk 0:03:00.4]}
2... g6 {[%clk 0:02:57]} 3. Nc3 {[%clk 0:02:59.5]} 3... Bg7 {[%clk 0:02:57.5]}
4. Nf3 {[%clk 0:02:59.5]} 4... a6 {[%clk 0:02:56.6]} 5. a4 {[%clk 0:02:59.4]}
5... b6 {[%clk 0:02:53.6]} 6. Be2 {[%clk 0:02:57.2]} 6... e6 {[%clk 0:02:51.3]}
7. O-O {[%clk 0:02:57.5]} 7... Ne7 {[%clk 0:02:51.5]} 8. Re1 {[%clk 0:02:54.4]}
8... Bb7 {[%clk 0:02:50.7]} 9. Bf4 {[%clk 0:02:53.5]} 9... Nd7 {[%clk
0:02:50.3]} 10. Qd2 {[%clk 0:02:52.3]} 10... h6 {[%clk 0:02:50.7]} 11. h4 {[%clk
0:02:48.1]} 11... Nf6 {[%clk 0:02:44.5]} 12. Bf1 {[%clk 0:02:46.8]} 12... d5
{[%clk 0:02:40.5]} 13. exd5 {[%clk 0:02:32.3]} 13... Nexd5 {[%clk 0:02:39.2]}
14. Nxd5 {[%clk 0:02:28.9]} 14... Nxd5 {[%clk 0:02:28.8]} 15. Be5 {[%clk
0:02:26.3]} 15... O-O {[%clk 0:02:28.2]} 16. Bxg7 {[%clk 0:02:25.2]} 16... Kxg7
{[%clk 0:02:29.1]} 17. Rad1 {[%clk 0:02:15.8]} 17... Qf6 {[%clk 0:02:24.4]} 18.
Qe2 {[%clk 0:02:01.2]} 18... Nf4 {[%clk 0:02:22.9]} 19. Qe5 {[%clk 0:01:55.5]}
19... Bxf3 {[%clk 0:02:18.2]} 20. gxf3 {[%clk 0:01:52.7]} 20... Rfd8 {[%clk
0:02:08.5]} 21. Re4 {[%clk 0:01:42.4]} 21... Qxe5 {[%clk 0:01:57.6]} 22. Rxe5
{[%clk 0:01:39]} 22... c5 {[%clk 0:01:54.3]} 23. Re4 {[%clk 0:01:36.8]} 23... g5
{[%clk 0:01:51.6]} 24. hxg5 {[%clk 0:01:34.6]} 24... hxg5 {[%clk 0:01:52.5]} 25.
c3 {[%clk 0:01:31.7]} 25... Kf6 {[%clk 0:01:42.7]} 26. Ree1 {[%clk 0:01:23.9]}
26... cxd4 {[%clk 0:01:41]} 27. Rxd4 {[%clk 0:01:22.9]} 27... Rxd4 {[%clk
0:01:36.8]} 28. cxd4 {[%clk 0:01:23.3]} 28... b5 {[%clk 0:01:31.6]} 29. a5
{[%clk 0:01:17]} 29... Rc8 {[%clk 0:01:26]} 30. Rb1 {[%clk 0:00:58.8]} 30... Rc2
{[%clk 0:01:20]} 31. b4 {[%clk 0:00:55.4]} 31... Rd2 {[%clk 0:01:07.9]} 32. Rc1
{[%clk 0:00:42.3]} 32... Nd5 {[%clk 0:01:00.8]} 33. Kh2 {[%clk 0:00:35.3]} 33...
Rxd4 {[%clk 0:00:57.3]} 34. Kg3 {[%clk 0:00:32.4]} 34... Nxb4 {[%clk 0:00:51.2]}
35. Rc8 {[%clk 0:00:30.6]} 35... Rd1 {[%clk 0:00:45.9]} 36. Be2 {[%clk
0:00:23.1]} 36... Ra1 {[%clk 0:00:43.3]} 37. f4 {[%clk 0:00:20]} 37... gxf4+
{[%clk 0:00:37.4]} 38. Kxf4 {[%clk 0:00:20.3]} 38... Rxa5 {[%clk 0:00:38.3]} 39.
Rb8 {[%clk 0:00:16.5]} 39... Ra2 {[%clk 0:00:35.3]} 40. Bh5 {[%clk 0:00:15.6]}
40... Rxf2+ {[%clk 0:00:32.7]} 41. Kg3 {[%clk 0:00:16.2]} 41... Rf5 {[%clk
0:00:30.2]} 42. Bg4 {[%clk 0:00:15.5]} 42... Rc5 {[%clk 0:00:28.6]} 43. Rb6
{[%clk 0:00:15.9]} 43... Rc6 {[%clk 0:00:22]} 44. Rb7 {[%clk 0:00:14.9]} 44...
Nd5 {[%clk 0:00:20.5]} 45. Bh5 {[%clk 0:00:14.9]} 45... Rc7 {[%clk 0:00:20.5]}
46. Rb8 {[%clk 0:00:14.6]} 46... b4 {[%clk 0:00:20.8]} 47. Bf3 {[%clk
0:00:13.2]} 47... a5 {[%clk 0:00:19.2]} 48. Ra8 {[%clk 0:00:12.9]} 48... Rc5
{[%clk 0:00:17.7]} 49. Rb8 {[%clk 0:00:12.6]} 49... a4 {[%clk 0:00:15.3]} 50.
Bxd5 {[%clk 0:00:11.5]} 50... exd5 {[%clk 0:00:16.2]} 51. Rxb4 {[%clk
0:00:08.9]} 51... Ra5 {[%clk 0:00:16.7]} 52. Rb2 {[%clk 0:00:07.7]} 52... a3
{[%clk 0:00:16.8]} 53. Ra2 {[%clk 0:00:07]} 53... Ke5 {[%clk 0:00:17.4]} 54. Kf3
{[%clk 0:00:05.4]} 54... Kd4 {[%clk 0:00:17.9]} 55. Ke2 {[%clk 0:00:04.8]} 55...
Kc3 {[%clk 0:00:18.4]} 56. Kd1 {[%clk 0:00:04.7]} 56... Kb3 {[%clk 0:00:18.9]}
57. Rf2 {[%clk 0:00:04.6]} 57... a2 {[%clk 0:00:19.1]} 0-1

[Event "Early-Titled-Tuesday-Blitz-January-16-2024"]
[Site "Chess.com"]
[Date "2024.01.16"]
[Round "4"]
[White "Chernyavsky_A"]
[Black "Alexchess1984"]
[Result "0-1"]
[WhiteElo "2410"]
[BlackElo "2681"]
[TimeControl "180+1"]
[EndTime "8:42:31 PST"]
[Termination "Alexchess1984 won on time"]

1. c4 {[%clk 0:03:00.9]} 1... g6 {[%clk 0:02:51.9]} 2. Nc3 {[%clk 0:03:00.8]}
2... c5 {[%clk 0:02:51.6]} 3. Nf3 {[%clk 0:02:57.1]} 3... Bg7 {[%clk 0:02:51.5]}
4. d4 {[%clk 0:02:57.6]} 4... cxd4 {[%clk 0:02:52.4]} 5. Nxd4 {[%clk 0:02:57.9]}
5... Nc6 {[%clk 0:02:51.8]} 6. Nc2 {[%clk 0:02:53.9]} 6... d6 {[%clk 0:02:45.5]}
7. e4 {[%clk 0:02:50.2]} 7... Bxc3+ {[%clk 0:02:44]} 8. bxc3 {[%clk 0:02:51.1]}
8... Nf6 {[%clk 0:02:44.6]} 9. Bd3 {[%clk 0:02:22.5]} 9... O-O {[%clk
0:02:40.6]} 10. O-O {[%clk 0:02:12.5]} 10... Be6 {[%clk 0:02:40.2]} 11. Bg5
{[%clk 0:01:23.6]} 11... Rc8 {[%clk 0:02:36.4]} 12. Ne3 {[%clk 0:00:40.7]} 12...
Ne5 {[%clk 0:02:32.8]} 13. Nd5 {[%clk 0:00:35.5]} 13... Nxc4 {[%clk 0:02:04.2]}
14. Nxf6+ {[%clk 0:00:34.6]} 14... exf6 {[%clk 0:02:04]} 15. Bh6 {[%clk
0:00:30.6]} 15... Re8 {[%clk 0:02:04.3]} 16. Rb1 {[%clk 0:00:22]} 16... b6
{[%clk 0:02:03]} 17. Qa4 {[%clk 0:00:20.9]} 17... Na5 {[%clk 0:01:55.9]} 18.
Rfd1 {[%clk 0:00:19.2]} 18... Bc4 {[%clk 0:01:46.5]} 19. Qa3 {[%clk 0:00:13.9]}
19... Bxd3 {[%clk 0:01:44.6]} 20. Rxd3 {[%clk 0:00:14.3]} 20... Rc6 {[%clk
0:00:59.3]} 21. f3 {[%clk 0:00:11.4]} 21... Qc7 {[%clk 0:00:55.6]} 22. Rbd1
{[%clk 0:00:10.9]} 22... Nc4 {[%clk 0:00:55.4]} 23. Qc1 {[%clk 0:00:10.2]} 23...
Ne5 {[%clk 0:00:53.5]} 24. Re3 {[%clk 0:00:06.3]} 24... Nd7 {[%clk 0:00:51.2]}
25. Qd2 {[%clk 0:00:05.9]} 25... Ne5 {[%clk 0:00:48.6]} 26. Bf4 {[%clk
0:00:05.5]} 26... Nc4 {[%clk 0:00:48.1]} 27. Qe1 {[%clk 0:00:03.7]} 27... Nxe3
{[%clk 0:00:48.5]} 28. Bxe3 {[%clk 0:00:04]} 28... Rxc3 {[%clk 0:00:48.2]} 29.
Bd4 {[%clk 0:00:04.7]} 29... Rc4 {[%clk 0:00:48.4]} 30. Bxf6 {[%clk 0:00:04.9]}
30... Qc5+ {[%clk 0:00:48.5]} 31. Kh1 {[%clk 0:00:05.4]} 31... d5 {[%clk
0:00:47.4]} 32. Qh4 {[%clk 0:00:04.8]} 32... dxe4 {[%clk 0:00:46.9]} 33. Qh6
{[%clk 0:00:04]} 33... Qf8 {[%clk 0:00:47.5]} 34. Qf4 {[%clk 0:00:03.4]} 34...
Rc6 {[%clk 0:00:45.2]} 35. fxe4 {[%clk 0:00:03.6]} 35... Rce6 {[%clk 0:00:45.8]}
36. e5 {[%clk 0:00:03.9]} 36... h5 {[%clk 0:00:45.2]} 37. Qg5 {[%clk 0:00:03.8]}
37... Kh7 {[%clk 0:00:44.7]} 38. h3 {[%clk 0:00:04.2]} 38... Qh6 {[%clk
0:00:44.3]} 39. Qg3 {[%clk 0:00:03.8]} 39... h4 {[%clk 0:00:43.9]} 40. Qf3
{[%clk 0:00:03.4]} 40... Qh5 {[%clk 0:00:43.7]} 41. Qf1 {[%clk 0:00:04.1]} 41...
Rxe5 {[%clk 0:00:43.1]} 42. Bxe5 {[%clk 0:00:03.5]} 42... Qxe5 {[%clk 0:00:44]}
43. Qxf7+ {[%clk 0:00:04]} 43... Kh6 {[%clk 0:00:43.7]} 44. Qf2 {[%clk 0:00:03]}
44... Qe4 {[%clk 0:00:39.9]} 45. Rd4 {[%clk 0:00:02.3]} 45... Qe1+ {[%clk
0:00:39.7]} 46. Qxe1 {[%clk 0:00:03.1]} 46... Rxe1+ {[%clk 0:00:40.3]} 47. Kh2
{[%clk 0:00:04]} 47... Kh5 {[%clk 0:00:38.6]} 48. Rd7 {[%clk 0:00:02.5]} 48...
a5 {[%clk 0:00:37.5]} 49. Rd5+ {[%clk 0:00:02.7]} 49... g5 {[%clk 0:00:37.1]}
50. Rb5 {[%clk 0:00:03.3]} 50... Re6 {[%clk 0:00:36.3]} 51. a4 {[%clk
0:00:03.6]} 51... Kg6 {[%clk 0:00:35.7]} 52. g4 {[%clk 0:00:03.6]} 52... Kf6
{[%clk 0:00:34.3]} 53. Rf5+ {[%clk 0:00:03.4]} 53... Kg6 {[%clk 0:00:34.5]} 54.
Rb5 {[%clk 0:00:03.2]} 54... Rc6 {[%clk 0:00:35.1]} 55. Kg2 {[%clk 0:00:03.2]}
55... Rd6 {[%clk 0:00:27.5]} 56. Kf3 {[%clk 0:00:03.2]} 56... Rd3+ {[%clk
0:00:20.1]} 57. Kg2 {[%clk 0:00:03]} 57... Rd2+ {[%clk 0:00:19.1]} 58. Kg1
{[%clk 0:00:02.1]} 58... Rd6 {[%clk 0:00:20]} 59. Kg2 {[%clk 0:00:02.3]} 59...
Rc6 {[%clk 0:00:20.7]} 60. Kf3 {[%clk 0:00:02.3]} 60... Kf6 {[%clk 0:00:19.9]}
0-1

[Event "Early-Titled-Tuesday-Blitz-January-16-2024"]
[Site "Chess.com"]
[Date "2024.01.16"]
[Round "4"]
[White "NikaVolkov"]
[Black "Sychev_Klementy"]
[Result "1/2-1/2"]
[WhiteElo "2585"]
[BlackElo "2782"]
[TimeControl "180+1"]
[EndTime "8:42:37 PST"]
[Termination "Game drawn - insufficient material"]

1. d4 {[%clk 0:03:00.9]} 1... Nf6 {[%clk 0:02:57]} 2. c4 {[%clk 0:03:00.7]} 2...
b6 {[%clk 0:02:54.7]} 3. Nc3 {[%clk 0:03:00.6]} 3... Bb7 {[%clk 0:02:54.9]} 4.
e3 {[%clk 0:03:00.7]} 4... e6 {[%clk 0:02:49.2]} 5. Qc2 {[%clk 0:02:59.8]} 5...
Bb4 {[%clk 0:02:47.8]} 6. Nf3 {[%clk 0:02:59.2]} 6... O-O {[%clk 0:02:40]} 7.
Bd3 {[%clk 0:02:59.5]} 7... c5 {[%clk 0:02:37.4]} 8. O-O {[%clk 0:02:59.3]} 8...
Bxf3 {[%clk 0:02:34.1]} 9. gxf3 {[%clk 0:03:00.2]} 9... cxd4 {[%clk 0:02:33.4]}
10. exd4 {[%clk 0:03:01.1]} 10... Nc6 {[%clk 0:02:33.9]} 11. Be3 {[%clk
0:03:00.1]} 11... Rc8 {[%clk 0:02:13.5]} 12. Ne2 {[%clk 0:02:58.9]} 12... d5
{[%clk 0:02:02.9]} 13. b3 {[%clk 0:02:54]} 13... Bd6 {[%clk 0:02:01.5]} 14. a3
{[%clk 0:02:43.1]} 14... dxc4 {[%clk 0:01:42.9]} 15. bxc4 {[%clk 0:02:44]} 15...
Na5 {[%clk 0:01:42.4]} 16. Rac1 {[%clk 0:02:41]} 16... Nxc4 {[%clk 0:01:39.3]}
17. Bxc4 {[%clk 0:02:38.9]} 17... b5 {[%clk 0:01:39.6]} 18. Qb3 {[%clk
0:02:33.1]} 18... bxc4 {[%clk 0:01:39.3]} 19. Rxc4 {[%clk 0:02:34]} 19... Rxc4
{[%clk 0:01:22.7]} 20. Qxc4 {[%clk 0:02:34.9]} 20... Nd5 {[%clk 0:01:22.9]} 21.
Kg2 {[%clk 0:02:14.2]} 21... Bxa3 {[%clk 0:01:16.1]} 22. Qa4 {[%clk 0:02:11]}
22... Bd6 {[%clk 0:00:55.7]} 23. Qxa7 {[%clk 0:02:10.5]} 23... Nxe3+ {[%clk
0:00:55.6]} 24. fxe3 {[%clk 0:02:10.4]} 24... Qg5+ {[%clk 0:00:56]} 25. Ng3
{[%clk 0:01:52.8]} 25... Qxe3 {[%clk 0:00:55.2]} 26. Ne4 {[%clk 0:01:47.2]}
26... Bb8 {[%clk 0:00:44.1]} 27. Qd7 {[%clk 0:01:33.1]} 27... h6 {[%clk
0:00:28.7]} 28. d5 {[%clk 0:01:18.1]} 28... Qf4 {[%clk 0:00:28.1]} 29. d6 {[%clk
0:01:16.5]} 29... Qe5 {[%clk 0:00:18]} 30. Rd1 {[%clk 0:01:14.5]} 30... f5
{[%clk 0:00:15.2]} 31. Nf2 {[%clk 0:01:08.6]} 31... Kh7 {[%clk 0:00:07.2]} 32.
Qe7 {[%clk 0:00:54.4]} 32... Rc8 {[%clk 0:00:07.1]} 33. Qb7 {[%clk 0:00:41.6]}
33... Rd8 {[%clk 0:00:05.3]} 34. Qb6 {[%clk 0:00:22.5]} 34... Qf6 {[%clk
0:00:05.6]} 35. d7 {[%clk 0:00:20.5]} 35... Qe7 {[%clk 0:00:03.9]} 36. h3 {[%clk
0:00:18.8]} 36... Be5 {[%clk 0:00:03]} 37. Qc6 {[%clk 0:00:17.9]} 37... Qg5+
{[%clk 0:00:02.9]} 38. Kf1 {[%clk 0:00:18]} 38... Qe7 {[%clk 0:00:03.2]} 39. Rd3
{[%clk 0:00:13.7]} 39... Bf6 {[%clk 0:00:03.3]} 40. Nd1 {[%clk 0:00:13.7]} 40...
e5 {[%clk 0:00:03.7]} 41. Ne3 {[%clk 0:00:14.3]} 41... e4 {[%clk 0:00:04.3]} 42.
Nxf5 {[%clk 0:00:13.2]} 42... Qf7 {[%clk 0:00:02.4]} 43. Qxe4 {[%clk 0:00:10.7]}
43... Kh8 {[%clk 0:00:02]} 44. Qd5 {[%clk 0:00:09.2]} 44... Qh5 {[%clk
0:00:01.6]} 45. Kg2 {[%clk 0:00:08.5]} 45... Qg5+ {[%clk 0:00:01.9]} 46. Ng3
{[%clk 0:00:08.4]} 46... Qxd5 {[%clk 0:00:02.1]} 47. Rxd5 {[%clk 0:00:09.3]}
47... Kg8 {[%clk 0:00:02.6]} 48. Ne4 {[%clk 0:00:09.7]} 48... Be7 {[%clk
0:00:03.1]} 49. f4 {[%clk 0:00:08]} 49... Kf7 {[%clk 0:00:03.6]} 50. f5 {[%clk
0:00:08.6]} 50... g6 {[%clk 0:00:03.6]} 51. fxg6+ {[%clk 0:00:08.4]} 51... Kxg6
{[%clk 0:00:03.8]} 52. Kf3 {[%clk 0:00:09]} 52... Kf7 {[%clk 0:00:04.3]} 53. Kf4
{[%clk 0:00:09.6]} 53... Ke6 {[%clk 0:00:04.7]} 54. Rh5 {[%clk 0:00:08.5]} 54...
Kxd7 {[%clk 0:00:04.7]} 55. Rxh6 {[%clk 0:00:08.7]} 55... Ra8 {[%clk 0:00:03.9]}
56. h4 {[%clk 0:00:07.5]} 56... Ra4 {[%clk 0:00:03.6]} 57. h5 {[%clk 0:00:07.1]}
57... Ra5 {[%clk 0:00:04.1]} 58. Rh7 {[%clk 0:00:07]} 58... Ke8 {[%clk
0:00:03.5]} 59. Ng3 {[%clk 0:00:05.8]} 59... Bd6+ {[%clk 0:00:03.3]} 60. Kg4
{[%clk 0:00:06.3]} 60... Ra4+ {[%clk 0:00:03.1]} 61. Kh3 {[%clk 0:00:04.8]}
61... Ra3 {[%clk 0:00:03.4]} 62. Rg7 {[%clk 0:00:05.4]} 62... Kf8 {[%clk
0:00:03.5]} 63. Rg4 {[%clk 0:00:05.6]} 63... Rxg3+ {[%clk 0:00:03.5]} 64. Rxg3
{[%clk 0:00:06]} 64... Bxg3 {[%clk 0:00:04.3]} 65. Kxg3 {[%clk 0:00:06.9]} 65...
Kg7 {[%clk 0:00:04.9]} 66. h6+ {[%clk 0:00:07.8]} 66... Kh7 {[%clk 0:00:05.5]}
67. Kf3 {[%clk 0:00:07]} 67... Kxh6 {[%clk 0:00:06.4]} 1/2-1/2